bitfinex/quotes_SOLUSD_20250508
["timestamp","ask_amount","ask_price","bid_price","bid_amount"]
[1746731642010,24.91377532,160.39,160.37,10.0]
[1746731642211,18.67891304,160.38,160.37,10.0]
[1746731642606,18.67891304,160.38,160.36,15.5]
[1746731642850,18.67891304,160.37,160.36,15.5]
[1746731643035,18.82107461,160.37,160.36,15.5]
[1746731643633,37.47072347,160.37,160.36,15.5]
[1746731643837,48.69618816,160.37,160.36,15.5]
[1746731644018,54.93176838,160.37,160.36,15.5]
[1746731646339,36.28211952,160.37,160.36,15.5]
[1746731652337,26.0,160.34,160.31,10.0]
[1746731652518,59.95091703,160.32,160.31,10.0]
[1746731652718,122.76506323,160.31,160.3,15.48]
[1746731652910,152.66944096,160.31,160.3,15.48]
[1746731653349,122.62290166,160.31,160.3,25.48]
[1746731653538,152.52727939,160.31,160.3,25.48]
[1746731654551,158.76519343,160.31,160.3,25.48]
[1746731657547,158.76519343,160.31,160.3,15.48]
[1746731657741,158.76519343,160.31,160.3,25.48]
[1746731659146,6.23674691,160.34,160.32,10.0]
[1746731659351,29.90437773,160.33,160.32,10.0]
[1746731660023,36.14151363,160.33,160.32,10.0]
[1746731661154,36.14151363,160.33,160.31,25.48]
[1746731661354,29.90437773,160.32,160.31,25.48]
[1746731661958,44.64964886,160.3,160.26,10.0]
[1746731662253,44.64964886,160.3,160.22,6.3196]
[1746731662254,26.0,160.25,160.22,10.0]
[1746731662554,29.90437773,160.23,160.22,15.48]
[1746731663247,29.90437773,160.23,160.21,15.48]
[1746731663438,29.90437773,160.22,160.21,15.48]
[1746731663639,29.90437773,160.22,160.21,25.48]
[1746731664252,36.14579578,160.22,160.21,25.48]
[1746731665732,39.28567042,160.22,160.21,25.48]
[1746731666050,39.28567042,160.22,160.21,15.48]
[1746731666352,39.28567042,160.22,160.21,25.48]
[1746731666554,39.28567042,160.22,160.03,9.77037223]
[1746731666555,18.64964886,160.16,160.03,9.77037223]
[1746731666730,0.14216157,160.07,160.03,9.77037223]
[1746731666926,18.79181043,160.12,160.03,25.51037223]
[1746731667131,29.90437773,160.04,160.03,25.51037223]
[1746731667546,29.90437773,160.04,160.03,9.77037223]
[1746731667757,29.90437773,160.04,160.03,15.78]
[1746731667935,0.14216157,160.03,160.0,15.78]
[1746731668133,29.90437773,160.01,160.0,15.78]
[1746731668548,36.15408109,160.01,159.99,9.77037223]
[1746731668763,6.24882834,160.03,160.0,15.78]
[1746731669832,29.90437773,160.01,160.0,15.76]
[1746731670033,29.90437773,160.01,159.99,9.77037223]
[1746731670248,29.90437773,160.0,159.99,9.77037223]
[1746731670440,0.14216157,160.04,159.99,25.53037223]
[1746731670642,29.90437773,160.0,159.99,25.53037223]
[1746731670963,6.24820988,160.05,159.99,25.53037223]
[1746731671147,29.90437773,160.02,159.99,25.53037223]
[1746731671661,29.90437773,160.03,159.99,25.53037223]
[1746731672052,29.90437773,160.02,159.99,25.53037223]
[1746731672441,29.90437773,160.02,159.99,15.76]
[1746731672662,29.90437773,160.02,159.99,22.01030236]
[1746731672898,29.90437773,160.02,159.99,15.76]
[1746731673664,29.90437773,160.03,159.99,22.01036371]
[1746731673863,55.90437773,160.08,159.99,51.91474144]
[1746731674062,29.90437773,160.03,159.99,22.01036371]
[1746731674556,62.15136259,160.08,159.99,22.01036371]
[1746731674759,29.90437773,160.03,159.99,22.01036371]
[1746731675336,29.90437773,160.08,160.0,26.0]
[1746731675549,29.90437773,160.05,160.0,55.90437773]
[1746731676444,29.90437773,160.05,160.01,29.90437773]
[1746731676758,29.90437773,160.05,160.02,15.5]
[1746731676964,32.24643945,160.1,160.03,6.24882834]
[1746731677131,29.90437773,160.05,160.03,6.24882834]
[1746731677330,29.90437773,160.06,160.03,6.24882834]
[1746731677760,0.14216157,160.11,160.03,6.24882834]
[1746731677944,29.90437773,160.06,160.03,6.24882834]
[1746731678146,29.90437773,160.05,160.02,27.88545318]
[1746731679064,29.90437773,160.06,160.02,57.78983091]
[1746731679644,29.90437773,160.06,160.02,27.88545318]
[1746731680064,29.90437773,160.06,160.02,12.38545318]
[1746731680385,29.90437773,160.06,160.03,37.42868513]
[1746731680975,29.90437773,160.05,160.03,37.42868513]
[1746731681870,29.90437773,160.06,160.03,37.42868513]
[1746731683264,29.90437773,160.04,160.02,6.1363]
[1746731683445,29.90437773,160.03,160.02,6.1363]
[1746731683640,29.90437773,160.05,160.02,21.7963]
[1746731684446,29.90437773,160.03,160.02,21.7963]
[1746731685042,29.90437773,160.04,160.02,21.7963]
[1746731686867,29.90437773,160.05,160.02,21.7963]
[1746731688965,51.76844569,160.08,160.02,15.66]
[1746731689167,188.16844569,160.08,160.02,15.66]
[1746731689358,29.90437773,160.03,160.02,15.66]
[1746731689561,29.90437773,160.03,160.02,15.62]
[1746731689748,29.90437773,160.03,160.02,15.6]
[1746731689951,29.90437773,160.03,160.0,26.0]
[1746731690153,29.90437773,160.02,160.0,26.0]
[1746731690353,29.90437773,160.02,160.01,15.6]
[1746731691170,29.90437773,160.03,160.01,15.6]
[1746731691580,29.90437773,160.03,160.0,26.0]
[1746731691581,29.90437773,160.03,160.02,15.58]
[1746731691962,29.90437773,160.04,160.02,15.58]
[1746731692680,29.90437773,160.04,160.0,26.0]
[1746731692873,29.90437773,160.04,160.03,15.58]
[1746731693074,29.90437773,160.04,160.0,32.24994371]
[1746731693275,36.15254489,160.05,160.03,15.58]
[1746731693475,29.90437773,160.04,160.03,15.58]
[1746731693685,29.90437773,160.04,160.0,32.24994371]
[1746731693990,29.90437773,160.04,160.01,15.56]
[1746731694290,29.90437773,160.06,160.01,51.71392974]
[1746731694587,29.90437773,160.06,160.01,36.15392974]
[1746731694792,29.90437773,160.05,160.0,62.154261]
[1746731694988,29.90437773,160.05,160.01,31.16]
[1746731695600,29.90437773,160.03,160.01,31.16]
[1746731696067,29.90437773,160.02,160.01,31.16]
[1746731696267,29.90437773,160.02,160.0,26.0]
[1746731696493,29.90437773,160.02,160.01,15.56]
[1746731696670,36.15359657,160.02,160.01,15.56]
[1746731698580,36.15359657,160.02,160.01,15.54]
[1746731699088,29.90437773,160.02,160.01,15.54]
[1746731699786,36.15359657,160.02,160.01,15.54]
[1746731700395,29.90437773,160.02,160.01,15.54]
[1746731700893,36.15359657,160.02,160.01,15.54]
[1746731701194,29.90437773,160.02,160.01,15.54]
[1746731701987,136.4,160.07,160.01,15.54]
[1746731701988,29.90437773,160.04,160.01,15.54]
[1746731702300,29.90437773,160.03,160.01,15.54]
[1746731703097,36.15340001,160.03,160.01,15.54]
[1746731704375,29.90437773,160.02,160.01,15.54]
[1746731704705,36.15359657,160.02,160.01,15.52]
[1746731705190,51.77664368,160.02,159.95,15.6]
[1746731705401,29.90437773,159.97,159.96,15.52]
[1746731705601,29.90437773,159.97,159.92,15.6]
[1746731705803,29.90437773,160.0,159.93,15.52]
[1746731705804,29.90437773,159.94,159.93,15.52]
[1746731705975,29.90437773,159.94,159.9,6.4813]
[1746731706175,61.10158053,160.0,159.91,15.52]
[1746731706176,0.14216157,159.99,159.91,15.52]
[1746731706390,29.90437773,159.94,159.91,15.52]
[1746731706589,29.90437773,159.93,159.91,15.52]
[1746731708083,6.25159053,159.96,159.91,6.25346031]
[1746731708403,29.90437773,159.96,159.92,15.52]
[1746731708602,29.90437773,159.94,159.92,15.52]
[1746731708798,29.90437773,159.93,159.92,15.52]
[1746731709407,6.25078134,159.98,159.92,15.52]
[1746731709702,29.90437773,159.96,159.92,15.52]
[1746731710286,29.90437773,159.95,159.92,15.52]
[1746731710489,29.90437773,159.94,159.92,15.52]
[1746731711301,6.25240723,159.94,159.93,15.52]
[1746731711479,36.15678496,159.94,159.93,15.52]
[1746731712190,36.15678496,159.94,159.89,41.6]
[1746731712382,29.90437773,159.91,159.9,15.52]
[1746731713400,36.1579412,159.91,159.9,15.52]
[1746731715199,36.1579412,159.91,159.85,47.85583353]
[1746731715375,6.25356347,159.91,159.9,15.52]
[1746731715583,36.1579412,159.91,159.9,15.52]
[1746731716488,6.25356347,159.91,159.9,15.52]
[1746731716687,36.1579412,159.91,159.9,15.52]
[1746731717790,6.25356347,159.91,159.9,15.52]
[1746731717975,36.1579412,159.91,159.9,15.52]
[1746731719103,6.25356347,159.91,159.9,15.52]
[1746731719290,36.1579412,159.91,159.9,15.52]
[1746731722095,6.25356347,159.91,159.9,15.52]
[1746731723302,6.25273557,159.93,159.9,15.52]
[1746731723605,142.65246257,159.94,159.91,29.90437773]
[1746731723809,6.25205894,159.95,159.91,29.90437773]
[1746731723988,6.25117209,159.97,159.92,29.90437773]
[1746731724499,36.15554982,159.97,159.92,29.90437773]
[1746731725308,36.15554982,159.97,159.93,29.90437773]
[1746731725484,6.25117209,159.97,159.93,29.90437773]
[1746731725688,36.15554982,159.97,159.93,29.90437773]
[1746731727311,6.25117209,159.97,159.93,29.90437773]
[1746731727992,26.0,160.01,159.92,6.25299934]
[1746731727993,15.6228487,160.03,159.94,29.90437773]
[1746731728182,6.24960939,160.01,159.96,29.90437773]
[1746731728378,36.15504198,159.99,159.97,15.52]
[1746731728586,29.90437773,159.98,159.92,26.0]
[1746731728810,6.25066425,159.99,159.92,47.77308964]
[1746731729012,29.90437773,159.98,159.93,45.42437773]
[1746731729987,6.25117209,159.97,159.93,45.42437773]
[1746731730909,6.25117209,159.97,159.93,15.52]
[1746731731083,29.90437773,159.96,159.93,15.52]
[1746731731697,29.90437773,159.96,159.92,41.52]
[1746731731907,29.90437773,159.96,159.93,15.52]
[1746731732108,6.25117209,159.97,159.93,15.52]
[1746731732282,29.90437773,159.96,159.93,15.52]
[1746731733119,6.25195373,159.95,159.92,41.52]
[1746731733316,6.25195373,159.95,159.93,15.52]
[1746731733909,36.15633146,159.95,159.93,15.52]
[1746731734112,36.15633146,159.95,159.9,55.90437773]
[1746731734414,36.15633146,159.95,159.94,15.52]
[1746731734809,6.25195373,159.95,159.94,15.52]
[1746731735924,6.25195373,159.95,159.91,29.90437773]
[1746731736216,6.25195373,159.95,159.92,15.52]
[1746731736790,6.25195373,159.95,159.92,45.42437773]
[1746731737006,6.25128898,159.97,159.93,29.90437773]
[1746731737514,6.25128898,159.97,159.94,29.90437773]
[1746731737715,6.25128898,159.97,159.89,56.2716]
[1746731737716,29.90437773,159.95,159.89,12.52576616]
[1746731738025,29.90437773,159.95,159.9,45.42437773]
[1746731738323,29.90437773,159.95,159.91,29.90437773]
[1746731739716,6.25234462,159.94,159.91,29.90437773]
[1746731740432,29.90437773,159.95,159.91,29.90437773]
[1746731740433,6.25206593,159.95,159.91,29.90437773]
[1746731741805,36.15644366,159.95,159.91,29.90437773]
[1746731742406,6.25039064,159.99,159.94,29.90437773]
[1746731742724,136.4,160.0,159.96,29.90437773]
[1746731742725,172.55452438,160.0,159.96,29.90437773]
[1746731742896,172.55452438,160.0,159.97,15.52]
[1746731743303,29.90437773,159.98,159.97,15.52]
[1746731743506,36.15515907,159.98,159.97,15.52]
[1746731744523,6.25078134,159.98,159.97,15.52]
[1746731744711,36.15515907,159.98,159.97,15.52]
[1746731744912,29.90437773,159.99,159.97,15.52]
[1746731745217,6.24804748,160.05,159.98,29.90437773]
[1746731745427,6.24804748,160.05,159.99,29.90437773]
[1746731745595,29.90437773,160.04,159.99,29.90437773]
[1746731746225,36.15285034,160.04,159.99,36.15464868]
[1746731746526,6.24781588,160.06,160.0,29.90437773]
[1746731746709,36.15219361,160.06,160.01,29.90437773]
[1746731747105,6.24648635,160.09,160.03,29.90437773]
[1746731747312,29.90437773,160.08,160.04,15.52]
[1746731747526,29.90437773,160.07,160.04,15.52]
[1746731748231,29.90437773,160.07,159.98,76.0]
[1746731748232,36.15242521,160.05,160.01,29.90437773]
[1746731748427,29.90437773,160.04,160.02,15.52]
[1746731750426,29.90437773,160.03,159.99,26.0]
[1746731750726,29.90437773,160.01,160.0,15.52]
[1746731752116,29.90437773,160.02,160.0,15.52]
[1746731752511,36.1539186,160.02,160.0,15.52]
[1746731754714,29.90437773,160.05,160.01,29.90437773]
[1746731754911,29.90437773,160.05,160.0,45.42437773]
[1746731755342,29.90437773,160.03,159.98,55.90437773]
[1746731755634,29.90437773,160.02,159.99,15.5]
[1746731755810,29.90437773,160.01,159.99,15.5]
[1746731756229,36.15412887,160.01,159.99,15.5]
[1746731757829,6.24975114,160.01,159.99,15.5]
[1746731758028,29.90437773,160.02,159.99,15.5]
[1746731759328,36.15396298,160.02,159.99,15.5]
[1746731759506,6.24958525,160.02,159.99,15.5]
[1746731760735,36.15281562,160.04,159.99,45.40437773]
[1746731760945,6.24821248,160.05,160.01,29.90437773]
[1746731761519,36.15259021,160.05,160.0,29.90437773]
[1746731761823,29.90437773,160.03,160.01,15.5]
[1746731762316,29.90437773,160.04,160.01,15.5]
[1746731763120,36.15218066,160.06,160.01,45.40437773]
[1746731763735,29.90437773,160.05,160.01,15.5]
[1746731764016,29.90437773,160.04,160.02,15.5]
[1746731764639,29.90437773,160.03,160.02,15.5]
[1746731765010,21.86694575,160.06,160.02,15.5]
[1746731765350,29.90437773,160.04,160.02,15.5]
[1746731765534,36.15320607,160.03,160.02,15.5]
[1746731765720,25.00631915,160.03,159.99,18.75749081]
[1746731765922,25.00631915,160.03,160.0,15.5]
[1746731766136,6.24882834,160.03,160.0,15.5]
[1746731768133,25.00631915,160.03,160.0,15.5]
[1746731768335,18.75749081,160.02,160.0,15.5]
[1746731768537,25.00631915,160.03,160.0,15.5]
[1746731768836,6.24882834,160.03,160.0,15.5]
[1746731769023,6.24854014,160.04,160.0,34.25749081]
[1746731769219,6.24854014,160.04,160.01,18.75749081]
[1746731769446,6.24765712,160.06,160.01,18.75749081]
[1746731769750,161.4048667,160.07,160.03,18.75749081]
[1746731769935,142.64737589,160.07,160.03,18.75749081]
[1746731770947,6.2467204,160.09,160.05,18.75749081]
[1746731771117,18.75749081,160.08,160.06,15.5]
[1746731771328,6.2467204,160.09,160.06,15.5]
[1746731771329,18.75749081,160.07,160.06,15.5]
[1746731771938,6.24726682,160.07,160.06,15.5]
[1746731772241,6.24701042,160.08,160.06,15.5]
[1746731772442,25.00450123,160.08,160.06,15.5]
[1746731773440,6.24648635,160.09,160.06,15.5]
[1746731773648,18.75749081,160.08,160.06,15.5]
[1746731775150,6.24648635,160.09,160.06,15.5]
[1746731775350,6.24726682,160.07,160.06,15.5]
[1746731776742,25.00442114,160.08,160.06,15.5]
[1746731778641,18.75749081,160.08,160.06,15.5]
[1746731778840,25.00439216,160.08,160.06,15.5]
[1746731780855,152.01508331,160.11,160.06,15.5]
[1746731781172,18.75749081,160.08,160.06,15.5]
[1746731781656,18.75749081,160.07,160.06,15.5]
[1746731783060,25.00475763,160.07,159.99,108.3]
[1746731783241,18.75749081,160.04,160.0,15.48]
[1746731783445,18.75749081,160.04,160.0,34.23749081]
[1746731783649,136.4,160.09,160.03,18.75749081]
[1746731783857,6.24531601,160.12,160.06,18.75749081]
[1746731784159,18.75749081,160.11,160.07,15.48]
[1746731784532,18.75749081,160.1,160.07,15.48]
[1746731784939,25.00361557,160.1,160.07,15.48]
[1746731785358,18.75749081,160.08,160.01,45.68920215]
[1746731785563,25.00361557,160.1,160.05,18.75749081]
[1746731785862,25.00361557,160.1,160.06,15.48]
[1746731785863,18.75749081,160.08,160.06,15.48]
[1746731786966,6.24726682,160.07,160.06,15.48]
[1746731789361,6.24687656,160.08,160.06,15.48]
[1746731789865,25.00436737,160.08,160.06,15.48]
[1746731792264,6.24687656,160.08,160.06,15.48]
[1746731792646,6.24609618,160.1,160.07,18.75749081]
[1746731793163,6.24609618,160.1,160.09,18.74331749]
[1746731794053,6.24609618,160.1,160.06,15.48]
[1746731794363,6.24609618,160.1,160.08,18.74331749]
[1746731794856,6.24609618,160.1,160.09,18.74331749]
[1746731795253,6.24609618,160.1,160.08,18.74331749]
[1746731796944,6.24609618,160.1,160.07,18.74594611]
[1746731800975,6.24609618,160.1,160.08,18.74594611]
[1746731801451,6.24609618,160.1,160.09,18.74594611]
[1746731802258,6.24609618,160.1,160.08,18.74594611]
[1746731802956,6.24609618,160.1,160.06,34.22594611]
[1746731803346,21.86133665,160.1,160.06,34.22594611]
[1746731804974,21.86133665,160.1,160.06,18.74594611]
[1746731805171,18.74594611,160.09,160.07,15.48]
[1746731805348,40.60728276,160.1,160.07,15.48]
[1746731806357,21.86133665,160.1,160.07,15.48]
[1746731806573,40.60728276,160.1,160.07,15.48]
[1746731807370,21.86133665,160.1,160.07,15.48]
[1746731809967,40.60728276,160.1,160.07,15.48]
[1746731810269,40.60728276,160.1,160.05,18.74594611]
[1746731810450,40.60728276,160.1,160.06,15.48]
[1746731811150,21.86133665,160.1,160.06,34.22594611]
[1746731813976,21.86133665,160.1,160.06,15.48]
[1746731814277,21.86133665,160.1,160.06,34.22594611]
[1746731815380,6.24609618,160.1,160.07,18.74594611]
[1746731815670,6.24609618,160.1,160.08,18.74594611]
[1746731816271,6.24609618,160.1,160.07,18.74594611]
[1746731816975,6.24609618,160.1,160.06,15.48]
[1746731817156,24.99204229,160.1,160.06,15.48]
[1746731818772,40.60728276,160.1,160.06,15.48]
[1746731819079,21.86133665,160.1,160.07,18.74594611]
[1746731819287,21.86133665,160.1,160.06,34.22594611]
[1746731819967,21.86133665,160.1,160.07,18.74594611]
[1746731821880,6.24609618,160.1,160.08,18.74594611]
[1746731822174,6.24609618,160.1,160.06,15.48]
[1746731822680,6.24609618,160.1,160.07,18.74594611]
[1746731824276,21.86133665,160.1,160.06,15.48]
[1746731826278,21.86133665,160.1,160.06,34.22594611]
[1746731826483,21.86133665,160.1,160.07,18.74594611]
[1746731826674,6.24609618,160.1,160.08,18.74594611]
[1746731827168,6.24609618,160.1,160.09,18.74594611]
[1746731828156,6.24531601,160.12,160.09,18.74594611]
[1746731829977,21.85860604,160.12,160.07,6.5986]
[1746731830158,21.85860604,160.12,160.08,18.74594611]
[1746731830358,21.85860604,160.12,160.07,6.5986]
[1746731830554,40.60455215,160.12,160.07,6.5986]
[1746731830770,40.60455215,160.12,160.06,17.1361]
[1746731830771,18.74594611,160.11,160.06,34.22594611]
[1746731832686,21.86133665,160.1,160.06,34.22594611]
[1746731832861,40.60728276,160.1,160.06,15.48]
[1746731833179,18.74594611,160.09,160.06,15.48]
[1746731833382,40.60728276,160.1,160.06,15.48]
[1746731834198,21.86133665,160.1,160.03,6.2205]
[1746731834387,18.74594611,160.05,159.99,16.7219649]
[1746731834595,26.0,160.07,159.99,6.3357]
[1746731834596,18.74594611,160.03,159.99,6.3357]
[1746731834779,6.24921884,160.02,160.0,15.46]
[1746731834977,6.24921884,160.02,160.0,34.20594611]
[1746731835777,6.24843789,160.04,160.01,18.74594611]
[1746731836087,6.24843789,160.04,160.0,34.20594611]
[1746731836694,6.24843789,160.04,160.01,18.74594611]
[1746731837371,6.24843789,160.04,160.02,18.74594611]
[1746731838878,6.24804748,160.05,160.02,18.74594611]
[1746731840395,6.24804748,160.05,160.04,18.74594611]
[1746731840995,34.36401595,160.08,160.04,18.74594611]
[1746731840996,6.24726682,160.07,160.04,18.74594611]
[1746731841577,21.86543387,160.07,160.04,18.74594611]
[1746731841769,21.86543387,160.07,160.03,18.74594611]
[1746731842174,40.61137998,160.07,160.03,18.74594611]
[1746731842685,6.24726682,160.07,160.04,18.74594611]
[1746731842888,6.24687656,160.08,160.04,18.74594611]
[1746731843074,6.24687656,160.08,160.05,18.74594611]
[1746731843274,6.24687656,160.08,160.06,15.46]
[1746731846300,40.61001407,160.08,160.06,15.46]
[1746731846711,21.86406796,160.08,160.06,15.46]
[1746731849105,9.74687656,160.08,160.06,34.20594611]
[1746731853311,9.74687656,160.08,160.06,15.46]
[1746731857584,18.74594611,160.07,160.02,18.74594611]
[1746731857909,18.74594611,160.05,160.03,15.46]
[1746731858907,6.24843789,160.04,160.03,15.46]
[1746731859478,6.24843789,160.04,160.03,34.20594611]
[1746731859698,6.24687656,160.08,160.03,34.20594611]
[1746731860006,6.24687656,160.08,160.04,18.74594611]
[1746731860598,24.99282267,160.08,160.04,18.74594611]
[1746731862109,24.99282267,160.08,160.03,15.46]
[1746731862287,18.74594611,160.06,160.03,15.46]
[1746731863108,6.24765712,160.06,160.03,15.46]
[1746731864701,40.61274605,160.06,160.03,15.46]
[1746731865613,40.61274605,160.06,160.02,18.74594611]
[1746731865813,40.61274605,160.06,160.04,15.44]
[1746731866119,18.74594611,160.07,160.04,15.44]
[1746731867099,18.74594611,160.07,159.99,6.3357]
[1746731867303,18.74594611,160.05,160.0,18.74594611]
[1746731867619,18.74594611,160.05,160.01,15.44]
[1746731868115,21.86953261,160.04,160.02,15.44]
[1746731871126,6.24765712,160.06,160.02,34.18594611]
[1746731872115,24.99360323,160.06,160.02,34.18594611]
[1746731872315,3.5,160.05,160.02,34.18594611]
[1746731872619,6.24843789,160.04,160.02,34.18594611]
[1746731876325,6.24843789,160.04,160.02,15.44]
[1746731876823,6.1247325,160.04,160.02,15.44]
[1746731881409,6.1247325,160.04,160.02,34.18594611]
[1746731881819,136.4,160.07,160.03,18.74594611]
[1746731882123,6.24687656,160.08,160.06,18.74594611]
[1746731882699,6.24609618,160.1,160.07,18.74594611]
[1746731882919,6.24531601,160.12,160.09,18.74594611]
[1746731883123,6.24531601,160.12,160.1,18.74594611]
[1746731883616,6.24531601,160.12,160.11,18.74594611]
[1746731883801,6.24531601,160.12,160.1,18.74594611]
[1746731884117,18.74594611,160.15,160.1,18.74594611]
[1746731884423,6.24453603,160.14,160.1,18.74594611]
[1746731884602,6.24453603,160.14,160.11,18.74594611]
[1746731884804,6.24453603,160.14,160.08,15.44]
[1746731884805,6.24453603,160.14,160.1,18.74594611]
[1746731885620,24.99048214,160.14,160.1,18.74594611]
[1746731886126,18.74594611,160.13,160.09,18.74594611]
[1746731887006,18.74594611,160.13,160.1,15.44]
[1746731888129,6.24531601,160.12,160.1,15.44]
[1746731889525,6.24531601,160.12,160.1,34.18594611]
[1746731890327,6.24492599,160.13,160.1,34.18594611]
[1746731892507,6.24492599,160.13,160.1,15.44]
[1746731893927,40.60318709,160.13,160.1,15.44]
[1746731894426,18.74594611,160.12,160.06,6.1506]
[1746731894727,18.74594611,160.1,160.07,15.42]
[1746731894935,18.74594611,160.08,160.03,15.44]
[1746731895113,18.74594611,160.07,160.04,15.42]
[1746731895517,18.74594611,160.07,160.03,18.74594611]
[1746731895834,18.74594611,160.06,160.04,15.42]
[1746731896041,6.24804748,160.05,160.04,15.42]
[1746731897509,24.99399359,160.05,160.0,26.0]
[1746731897711,24.99399359,160.05,160.04,15.42]
[1746731898729,24.99399359,160.05,160.0,18.74594611]
[1746731899032,24.99399359,160.05,160.01,15.42]
[1746731899330,6.24804748,160.05,160.03,18.74594611]
[1746731899714,6.24804748,160.05,160.02,18.74594611]
[1746731900025,6.24765712,160.06,160.02,18.74594611]
[1746731900427,6.24765712,160.06,159.99,21.69022916]
[1746731900428,24.99360323,160.06,159.99,21.69022916]
[1746731900629,24.99360323,160.06,160.03,15.42]
[1746731900836,6.24765712,160.06,160.03,15.42]
[1746731901016,24.99360323,160.06,160.04,15.42]
[1746731902332,18.74594611,160.05,160.0,18.74594611]
[1746731902515,18.74594611,160.05,160.01,15.42]
[1746731904237,18.74594611,160.04,160.01,15.42]
[1746731904433,24.99477445,160.03,159.98,6.0242]
[1746731904624,18.74594611,160.02,159.99,15.42]
[1746731905030,18.74594611,160.02,159.98,24.77014611]
[1746731905231,18.74594611,160.02,160.0,15.42]
[1746731905416,40.61684531,160.03,160.0,15.42]
[1746731906138,40.61684531,160.03,159.98,24.77014611]
[1746731906326,21.8708992,160.03,160.01,15.42]
[1746731906513,6.24882834,160.03,160.01,15.42]
[1746731906713,24.99477445,160.03,160.01,15.42]
[1746731906941,24.99477445,160.03,159.98,24.77014611]
[1746731907239,40.61684531,160.03,159.99,15.42]
[1746731907739,6.24804748,160.05,160.02,18.74594611]
[1746731908110,6.24779091,160.06,160.03,18.74594611]
[1746731908511,6.24779091,160.06,160.02,18.74594611]
[1746731909330,6.24779091,160.06,160.03,18.74594611]
[1746731910242,6.24726682,160.07,159.99,71.6701751]
[1746731910421,6.24726682,160.07,160.03,18.74594611]
[1746731911418,6.24726682,160.07,160.02,18.74594611]
[1746731911419,24.99321293,160.07,160.02,18.74594611]
[1746731912335,24.99321293,160.07,159.99,21.67003675]
[1746731912643,24.99321293,160.07,160.02,18.74594611]
[1746731913247,24.99321293,160.07,160.03,18.74594611]
[1746731913248,6.24726682,160.07,160.03,18.74594611]
[1746731913622,6.24453603,160.14,160.06,18.74594611]
[1746731913821,6.24453603,160.14,160.1,18.74594611]
[1746731914017,18.74594611,160.13,160.09,18.74594611]
[1746731914240,18.74594611,160.13,160.08,18.74594611]
[1746731914943,18.74594611,160.13,160.07,15.42]
[1746731915144,6.24531601,160.12,160.08,18.74594611]
[1746731916552,6.24531601,160.12,160.09,18.74594611]
[1746731917067,21.85724098,160.13,160.09,18.74594611]
[1746731917350,40.60318709,160.13,160.08,18.74594611]
[1746731918072,40.60318709,160.13,160.09,18.74594611]
[1746731919037,21.85724098,160.13,160.09,18.74594611]
[1746731921245,21.85724098,160.13,160.07,15.42]
[1746731921246,18.74594611,160.15,160.1,18.74594611]
[1746731921767,136.4,160.16,160.14,18.74594611]
[1746731921950,20.32544611,160.19,160.15,15.42]
[1746731922865,6.24297665,160.18,160.15,15.42]
[1746731925256,15.60693072,160.19,160.15,15.42]
[1746731925458,34.35287683,160.19,160.15,15.42]
[1746731926862,40.59546375,160.19,160.15,15.42]
[1746731928778,18.74594611,160.18,160.15,15.42]
[1746731929373,6.24336642,160.17,160.15,15.42]
[1746731929880,6.24336642,160.17,160.15,34.16594611]
[1746731930574,6.24336642,160.17,160.15,15.42]
[1746731934693,6.24297665,160.18,160.15,15.42]
[1746731934860,6.24297665,160.18,160.16,18.74594611]
[1746731935054,6.24219725,160.2,160.17,18.74594611]
[1746731935600,6.24219725,160.2,160.16,18.74594611]
[1746731936774,40.59363649,160.2,160.15,15.42]
[1746731936977,18.74594611,160.19,160.15,34.16594611]
[1746731938068,18.74594611,160.18,160.15,15.42]
[1746731938974,6.24336642,160.17,160.15,15.42]
[1746731939471,24.98931253,160.17,160.16,15.4]
[1746731944577,6.24336642,160.17,160.16,15.4]
[1746731946383,21.84769038,160.2,160.16,15.4]
[1746731946568,18.74594611,160.19,160.16,15.4]
[1746731947086,21.84769038,160.2,160.16,15.4]
[1746731947087,18.74594611,160.18,160.16,15.4]
[1746731947267,18.74594611,160.17,160.16,15.4]
[1746731947585,18.74594611,160.17,160.1,40.71274611]
[1746731947781,18.74594611,160.15,160.11,15.4]
[1746731948993,6.24453603,160.14,160.11,15.4]
[1746731949284,18.74594611,160.13,160.12,15.4]